bitfinex-derivatives/quotes_BTCF0:USTF0_20240907
["timestamp","ask_amount","ask_price","bid_price","bid_amount"]
[1725727426436,0.091746,54501.0,54498.0,0.14673936]
[1725727427541,0.091746,54501.0,54499.0,0.05498836]
[1725727427942,0.091746,54501.0,54498.0,0.14673936]
[1725727428441,0.091746,54501.0,54499.0,0.05498836]
[1725727429356,0.091746,54501.0,54499.0,0.091749]
[1725727429657,0.091733,54509.0,54503.0,0.091742]
[1725727429848,0.1448,54515.0,54507.0,0.19]
[1725727430049,0.19,54512.0,54505.0,0.05498836]
[1725727430255,0.091735,54508.0,54505.0,0.091739]
[1725727431054,0.1448,54515.0,54497.0,0.0496]
[1725727431055,0.19,54506.0,54502.0,0.05498836]
[1725727431249,0.19,54503.0,54497.0,0.14674036]
[1725727431558,0.19,54499.0,54498.0,0.05483047]
[1725727432253,0.19,54506.0,54497.0,0.19]
[1725727432453,0.19,54506.0,54504.0,0.05482631]
[1725727432761,0.281737,54506.0,54504.0,0.05482631]
[1725727432957,0.19,54506.0,54505.0,0.05482631]
[1725727433357,0.091739,54505.0,54504.0,0.05482631]
[1725727433656,0.091739,54505.0,54501.0,0.18290824]
[1725727434160,0.091739,54505.0,54504.0,0.07325726]
[1725727434355,0.09174,54504.0,54501.0,0.091745]
[1725727434558,0.09174,54504.0,54503.0,0.07327354]
[1725727434760,0.09174,54504.0,54501.0,0.091745]
[1725727435157,0.09174,54504.0,54503.0,0.07327322]
[1725727435355,0.09174,54504.0,54501.0,0.091745]
[1725727435552,0.19,54505.0,54500.0,0.09116324]
[1725727435757,0.1448,54515.0,54503.0,0.07327645]
[1725727435963,0.1448,54515.0,54501.0,0.07327645]
[1725727435964,0.2382,54504.0,54501.0,0.07327645]
[1725727436163,0.0976,54503.0,54501.0,0.07327645]
[1725727436358,0.189342,54503.0,54502.0,0.07327645]
[1725727436950,0.091747,54500.0,54499.0,0.09160364]
[1725727437160,0.281747,54500.0,54499.0,0.23142428]
[1725727437363,0.281747,54500.0,54499.0,0.23142686]
[1725727438461,0.091749,54499.0,54498.0,0.09160364]
[1725727438766,0.091749,54499.0,54498.0,0.2314282]
[1725727439362,0.091749,54499.0,54498.0,0.13982456]
[1725727439862,0.091745,54502.0,54501.0,0.091745]
[1725727440967,0.091745,54502.0,54501.0,0.18336436]
[1725727441363,0.091745,54502.0,54501.0,0.23156008]
[1725727441564,0.091745,54502.0,54501.0,0.32321481]
[1725727442362,0.091745,54502.0,54501.0,0.23156008]
[1725727443160,0.0935,54510.0,54501.0,0.32981508]
[1725727443362,0.091737,54506.0,54505.0,0.18341667]
[1725727443567,0.091737,54506.0,54505.0,0.32322319]
[1725727443759,0.091737,54506.0,54505.0,0.32322508]
[1725727443956,0.091737,54506.0,54505.0,0.18341667]
[1725727444164,0.091737,54506.0,54505.0,0.32322948]
[1725727444357,0.091737,54506.0,54505.0,0.091738]
[1725727444960,0.091737,54506.0,54505.0,0.18341667]
[1725727445161,0.091737,54506.0,54505.0,0.091738]
[1725727446967,0.091737,54506.0,54505.0,0.1650882]
[1725727447866,0.091737,54506.0,54505.0,0.091738]
[1725727449771,0.091733,54509.0,54507.0,0.091734]
[1725727449973,0.091733,54509.0,54507.0,0.16510271]
[1725727450157,0.091733,54509.0,54508.0,0.07336871]
[1725727450470,0.091734,54508.0,54507.0,0.16510439]
[1725727451368,0.091734,54508.0,54507.0,0.091734]
[1725727453868,0.3281,54536.0,54506.0,0.17337039]
[1725727454174,0.091719,54517.0,54516.0,0.09172]
[1725727454564,0.00896839,54523.0,54521.0,0.091712]
[1725727454773,0.091714,54520.0,54518.0,0.1]
[1725727454970,0.1438,54526.0,54519.0,0.091715]
[1725727454971,0.1,54522.0,54519.0,0.091715]
[1725727455174,0.09171,54522.0,54521.0,0.05499788]
[1725727455468,0.09171,54522.0,54519.0,0.14671288]
[1725727455674,0.1,54520.0,54519.0,0.14671288]
[1725727455865,0.1,54520.0,54519.0,0.091715]
[1725727456066,0.19,54521.0,54520.0,0.091714]
[1725727461071,0.281712,54521.0,54520.0,0.091714]
[1725727462571,0.281712,54521.0,54515.0,0.0497]
[1725727462572,0.19,54524.0,54516.0,0.09172]
[1725727462774,0.19,54524.0,54515.0,0.0497]
[1725727462775,0.09169,54534.0,54531.0,0.091694]
[1725727462966,0.19,54538.0,54531.0,0.091694]
[1725727463165,0.01720541,54536.0,54531.0,0.091694]
[1725727463774,0.10106924,54537.0,54531.0,0.091694]
[1725727463970,0.091693,54532.0,54531.0,0.091694]
[1725727465276,0.10822195,54537.0,54530.0,0.19]
[1725727465663,0.19,54536.0,54534.0,0.091689]
[1725727465970,0.091692,54533.0,54532.0,0.091693]
[1725727467179,0.19,54536.0,54534.0,0.091689]
[1725727467369,0.091688,54535.0,54534.0,0.091689]
[1725727467569,0.19898225,54539.0,54528.0,0.0485]
[1725727467570,0.29066425,54539.0,54536.0,0.091687]
[1725727468182,0.19898225,54539.0,54528.0,0.0485]
[1725727468475,0.281689,54535.0,54533.0,0.09169]
[1725727468876,0.281689,54535.0,54534.0,0.09169]
[1725727470567,0.19,54535.0,54534.0,0.09169]
[1725727471788,0.19,54535.0,54528.0,0.0485]
[1725727471789,0.091684,54538.0,54530.0,0.19]
[1725727473169,0.091684,54538.0,54535.0,0.091687]
[1725727473576,0.091684,54538.0,54530.0,0.19]
[1725727474079,0.06182732,54540.0,54530.0,0.19]
[1725727474587,0.15350732,54540.0,54537.0,0.091684]
[1725727474781,0.2137258,54539.0,54537.0,0.091684]
[1725727475084,0.35709677,54538.0,54537.0,0.091684]
[1725727475386,0.97513297,54538.0,54526.0,0.01685091]
[1725727475576,0.19,54535.0,54530.0,0.091696]
[1725727475778,0.091695,54532.0,54530.0,0.091696]
[1725727475980,0.05628358,54531.0,54530.0,0.091696]
[1725727476890,0.05628686,54531.0,54530.0,0.091696]
[1725727477185,0.091698,54529.0,54526.0,0.091703]
[1725727477385,0.12205017,54528.0,54527.0,0.091702]
[1725727477790,0.35658956,54528.0,54527.0,0.091702]
[1725727479383,0.12205017,54528.0,54527.0,0.091702]
[1725727479590,0.12205021,54528.0,54527.0,0.091702]
[1725727479790,0.3568136,54528.0,54527.0,0.091702]
[1725727479978,0.35681325,54528.0,54527.0,0.091702]
[1725727480179,0.35681325,54528.0,54527.0,0.281702]
[1725727480791,0.05628655,54528.0,54527.0,0.281702]
[1725727481293,0.05628655,54528.0,54527.0,0.29865653]
[1725727481891,0.091685,54537.0,54527.0,0.35361015]
[1725727482094,0.091685,54537.0,54536.0,0.091687]
[1725727483190,0.01683498,54540.0,54539.0,0.091682]
[1725727483389,0.0454,54545.0,54544.0,0.091673]
[1725727483594,0.16307417,54545.0,54544.0,0.091673]
[1725727483792,0.091674,54544.0,54540.0,0.091679]
[1725727483997,0.091675,54543.0,54540.0,0.091679]
[1725727485001,0.091675,54543.0,54541.0,0.091678]
[1725727485684,0.091675,54543.0,54542.0,0.091677]
[1725727485997,0.07140217,54545.0,54538.0,0.091683]
[1725727486187,0.19,54543.0,54538.0,0.091683]
[1725727486490,0.07140217,54545.0,54534.0,0.091689]
[1725727486491,0.19,54539.0,54534.0,0.091689]
[1725727486691,0.19,54539.0,54530.0,0.35614]
[1725727486692,0.091687,54536.0,54530.0,0.40965362]
[1725727486900,0.091687,54536.0,54535.0,0.091688]
[1725727489906,0.40373711,54536.0,54535.0,0.091688]
[1725727490086,0.42019118,54536.0,54535.0,0.091688]
[1725727490896,0.35442447,54536.0,54535.0,0.091688]
[1725727491484,0.16442447,54536.0,54535.0,0.091688]
[1725727491693,0.07273747,54536.0,54535.0,0.091688]
[1725727496894,0.01645407,54536.0,54535.0,0.091688]
[1725727497092,0.091686,54537.0,54536.0,0.091687]
[1725727498302,0.10836015,54537.0,54536.0,0.091687]
[1725727498900,0.091676,54543.0,54534.0,0.19]
[1725727499204,0.08473418,54598.0,54534.0,0.19]
[1725727499205,0.091668,54547.0,54540.0,0.19]
[1725727499396,0.091668,54547.0,54543.0,0.091673]
[1725727499699,0.091668,54547.0,54544.0,0.091672]
[1725727500006,0.091668,54547.0,54545.0,0.091671]
[1725727500195,0.00935402,54548.0,54546.0,0.091669]
[1725727501599,0.2383,54549.0,54541.0,0.05495362]
[1725727501801,0.138051,54558.0,54547.0,0.19]
[1725727502100,0.138051,54558.0,54552.0,0.09166]
[1725727502101,0.091655,54555.0,54552.0,0.09166]
[1725727502300,0.0464,54558.0,54548.0,0.0474]
[1725727502496,0.01719842,54557.0,54550.0,0.19]
[1725727502897,0.01719842,54557.0,54553.0,0.19]
[1725727503202,0.01626151,54560.0,54556.0,0.19]
[1725727503405,0.01719717,54559.0,54556.0,0.19]
[1725727503704,0.19,54559.0,54554.0,0.14660862]
[1725727503909,0.091653,54556.0,54548.0,0.05495362]
[1725727504103,0.091667,54548.0,54545.0,0.05495362]
[1725727504406,0.091667,54548.0,54544.0,0.307]
[1725727504898,0.28194435,54547.0,54544.0,0.307]
[1725727505099,0.28194435,54546.0,54545.0,0.091672]
[1725727505902,0.22567563,54546.0,54545.0,0.091672]
[1725727506803,0.3198677,54546.0,54545.0,0.281672]
[1725727507003,0.3198677,54546.0,54545.0,0.831672]
[1725727507203,0.22567563,54546.0,54545.0,0.831672]
[1725727507506,0.22567563,54546.0,54545.0,1.431672]
[1725727507507,0.3198677,54546.0,54545.0,1.431672]
[1725727507697,0.22567563,54546.0,54545.0,1.431672]
[1725727508096,0.22567563,54546.0,54545.0,1.571344]
[1725727509009,0.22567563,54546.0,54545.0,1.381344]
[1725727509208,0.22567563,54546.0,54545.0,1.571344]
[1725727510001,0.22567563,54546.0,54545.0,1.37296763]
[1725727510203,0.22567563,54546.0,54545.0,1.58804767]
[1725727510700,0.43017791,54546.0,54545.0,1.58804767]
[1725727511702,0.14097996,54546.0,54545.0,1.58804767]
[1725727511899,0.06574956,54546.0,54545.0,1.67972634]
[1725727512214,0.28919795,54547.0,54546.0,0.09167]
[1725727512413,0.28919795,54547.0,54546.0,0.68707]
[1725727513513,0.28919795,54547.0,54546.0,0.21004511]
[1725727514214,0.28919795,54547.0,54546.0,0.13707]
[1725727516211,0.28919795,54547.0,54546.0,1.37874]
[1725727516407,0.28919795,54547.0,54546.0,0.1917849]
[1725727516706,0.28919795,54547.0,54546.0,0.13707]
[1725727517615,0.091652,54557.0,54554.0,0.091655]
[1725727517808,0.1983763,54555.0,54554.0,0.091655]
[1725727518920,0.091658,54553.0,54552.0,0.19]
[1725727519120,0.1983763,54553.0,54552.0,0.09166]
[1725727520616,0.1983763,54553.0,54552.0,0.28166]
[1725727520806,0.01652381,54564.0,54552.0,0.19]
[1725727520807,0.091648,54560.0,54552.0,0.19]
[1725727521005,0.091644,54562.0,54560.0,0.091645]
[1725727521207,0.01652381,54564.0,54560.0,0.091645]
[1725727521413,0.1983763,54561.0,54560.0,0.091645]
[1725727522122,0.2900213,54561.0,54560.0,0.091645]
[1725727523435,0.1983763,54561.0,54560.0,0.281645]
[1725727527018,0.26410834,54561.0,54560.0,0.25348051]
[1725727527218,0.33931869,54561.0,54560.0,0.25348051]
[1725727527519,0.33931869,54561.0,54560.0,0.06348051]
[1725727528612,0.33931869,54561.0,54560.0,0.25348051]
[1725727528819,0.14094239,54561.0,54560.0,0.25348051]
[1725727529022,0.43057592,54561.0,54560.0,0.25348051]
[1725727529723,0.14094239,54561.0,54560.0,0.25348051]
[1725727530714,0.091647,54560.0,54556.0,0.19]
[1725727530914,0.091647,54560.0,54559.0,0.091648]
[1725727531118,0.23259046,54560.0,54559.0,0.091648]
[1725727531518,0.14094346,54560.0,54559.0,0.091648]
[1725727532129,0.14094346,54560.0,54559.0,0.06348321]
[1725727533131,0.06573254,54560.0,54559.0,0.06348321]
[1725727533517,0.14094346,54560.0,54559.0,0.06348321]
[1725727533723,0.06573254,54560.0,54559.0,0.06348321]
[1725727534116,0.26410884,54560.0,54559.0,0.06348321]
[1725727535022,0.1983763,54560.0,54559.0,0.06348321]
[1725727535936,0.2900223,54560.0,54559.0,0.06348321]
[1725727538046,0.1983763,54560.0,54559.0,0.25348321]
[1725727538635,0.0936,54567.0,54559.0,0.19]
[1725727538940,0.0936,54567.0,54558.0,0.01661817]
[1725727538941,0.1983763,54563.0,54558.0,0.01661817]
[1725727539235,0.1983763,54563.0,54562.0,0.091643]
[1725727539622,0.01679575,54573.0,54553.0,0.01686878]
[1725727539827,0.091622,54575.0,54570.0,0.28163]
[1725727540330,0.48823071,54571.0,54570.0,0.28163]
[1725727543828,0.48823071,54571.0,54570.0,0.29806207]
[1725727544537,0.28985441,54571.0,54570.0,0.29806207]
[1725727548735,0.09162,54576.0,54573.0,0.091623]
[1725727548940,0.1983763,54572.0,54553.0,0.091657]
[1725727549140,0.0089936,54583.0,54559.0,0.19]
[1725727549141,0.2900193,54562.0,54559.0,0.19]
[1725727549336,0.1983763,54562.0,54561.0,0.091645]
[1725727549841,0.091639,54565.0,54559.0,0.19]
[1725727550138,0.091639,54565.0,54563.0,0.19]
[1725727550542,0.1983763,54564.0,54563.0,0.35474012]
[1725727551332,0.091631,54569.0,54568.0,0.091632]
[1725727551643,0.1983763,54569.0,54568.0,0.14648507]
[1725727554839,0.1983763,54569.0,54568.0,0.14649485]
[1725727555040,0.1983763,54569.0,54568.0,0.15049485]
[1725727555245,0.1983763,54569.0,54568.0,0.095632]
[1725727555449,0.1983763,54569.0,54568.0,0.091632]
[1725727555748,0.2123763,54569.0,54568.0,0.092632]
[1725727558651,0.014,54569.0,54568.0,0.092632]
[1725727558843,0.2123763,54569.0,54568.0,0.092632]
[1725727560243,0.014,54569.0,54568.0,0.092632]
[1725727560844,0.014,54569.0,54568.0,0.10901124]
[1725727561845,0.2123763,54569.0,54568.0,0.10901124]
[1725727564850,0.013,54569.0,54568.0,1.35040424]
[1725727565549,0.0478,54585.0,54577.0,0.091618]
[1725727565550,0.091616,54578.0,54577.0,0.091618]
[1725727565750,0.10880582,54578.0,54577.0,0.281618]
[1725727565952,0.2899923,54578.0,54577.0,0.281618]
[1725727566456,0.3071815,54578.0,54577.0,0.281618]
[1725727566952,0.32118149,54578.0,54577.0,0.282618]
[1725727567351,0.32118162,54578.0,54577.0,0.282618]
[1725727567852,0.32118162,54578.0,54577.0,0.14753737]
[1725727568047,0.32118162,54578.0,54577.0,0.14753709]
[1725727568750,0.32118162,54578.0,54577.0,0.092618]
[1725727568959,0.32118162,54578.0,54577.0,0.001]
[1725727572156,0.3039923,54578.0,54577.0,0.001]
[1725727572354,0.19,54579.0,54577.0,0.001]
[1725727572355,0.091613,54580.0,54577.0,0.05492057]
[1725727572553,0.091613,54580.0,54573.0,0.19]
[1725727572554,0.091618,54577.0,54576.0,0.091619]
[1725727573058,0.2879943,54577.0,54576.0,0.091619]
[1725727573448,0.2859943,54577.0,54576.0,0.091619]
[1725727575455,0.1983763,54577.0,54576.0,0.281619]
[1725727577160,0.1983763,54577.0,54576.0,0.283619]
[1725727579862,0.091613,54580.0,54579.0,0.091614]
[1725727580356,0.2899893,54580.0,54579.0,0.091614]
[1725727581864,0.2899893,54580.0,54579.0,0.093614]
[1725727582862,0.2899893,54580.0,54579.0,0.091614]
[1725727583077,0.2899893,54580.0,54579.0,0.092614]
[1725727583465,0.2899893,54580.0,54579.0,0.093614]
[1725727584954,0.2899893,54580.0,54579.0,0.091614]
[1725727585161,0.2899893,54580.0,54579.0,0.092614]
[1725727585659,0.2899893,54580.0,54579.0,0.093614]
[1725727586368,0.2899893,54580.0,54579.0,0.092614]
[1725727587256,0.37289176,54580.0,54579.0,0.092614]
[1725727587760,0.30717868,54580.0,54579.0,0.091614]
[1725727587959,0.30717868,54580.0,54579.0,0.093614]
[1725727588170,0.30717868,54580.0,54579.0,0.002]
[1725727591169,0.090618,54577.0,54576.0,0.091618]
[1725727591473,0.30618368,54577.0,54576.0,0.091618]
[1725727592273,0.30618368,54577.0,54576.0,0.092618]
[1725727592672,0.21556568,54577.0,54576.0,0.282618]
[1725727593365,0.1983763,54577.0,54576.0,0.282618]
[1725727594379,0.1983763,54577.0,54576.0,0.281618]
[1725727594675,0.1983763,54577.0,54576.0,0.282618]
[1725727596169,0.1983763,54577.0,54576.0,0.092618]
[1725727596565,0.1983763,54577.0,54576.0,0.282618]
[1725727596772,0.091606,54584.0,54576.0,0.001]
[1725727596773,0.06571485,54584.0,54576.0,0.001]
[1725727596971,0.1983763,54578.0,54576.0,0.001]
[1725727597277,0.1983763,54578.0,54577.0,0.19]
[1725727597667,0.1983763,54578.0,54577.0,0.281618]
[1725727597868,0.091604,54586.0,54577.0,0.19]
[1725727598101,0.1983763,54579.0,54578.0,0.091616]
[1725727600369,0.1983763,54579.0,54578.0,0.097616]
[1725727601173,0.1983763,54579.0,54578.0,0.287616]
[1725727601566,0.2155638,54579.0,54578.0,0.287616]
[1725727601765,0.0171875,54579.0,54578.0,0.287616]
[1725727601981,0.06571485,54584.0,54583.0,0.091608]
[1725727602172,0.19909919,54590.0,54587.0,0.091601]
[1725727602173,0.06571485,54589.0,54587.0,0.091601]
[1725727602373,0.28127856,54588.0,54587.0,0.091601]
[1725727602581,0.28127856,54588.0,54587.0,0.281601]
[1725727602783,0.21556371,54588.0,54587.0,0.281601]
[1725727604476,0.21556371,54588.0,54587.0,0.091601]
[1725727605593,0.21556371,54588.0,54587.0,0.281601]
[1725727607281,0.091606,54585.0,54583.0,0.281607]
[1725727607586,0.21556371,54584.0,54583.0,0.281607]
[1725727607878,0.09161,54582.0,54580.0,0.091613]
[1725727608077,0.21556371,54581.0,54580.0,0.091613]
[1725727609166,0.1983763,54581.0,54580.0,0.094613]
[1725727609882,0.09161,54582.0,54581.0,0.091611]
[1725727610273,0.2899863,54582.0,54581.0,0.091611]
[1725727612886,0.2899863,54582.0,54581.0,0.093611]
[1725727614284,0.1983763,54582.0,54581.0,0.093611]
[1725727616275,0.21556398,54582.0,54581.0,0.093611]
[1725727616881,0.21556398,54582.0,54581.0,0.091611]
[1725727617076,0.21556398,54582.0,54581.0,0.093611]
[1725727620385,0.1983763,54582.0,54581.0,0.142911]
[1725727620891,0.1983763,54582.0,54581.0,0.093611]
[1725727625889,0.1983763,54582.0,54581.0,0.193611]
[1725727627493,0.1983763,54582.0,54581.0,0.24853157]
[1725727630991,0.1983763,54582.0,54581.0,0.093611]
[1725727631296,0.1983763,54582.0,54581.0,0.193611]
[1725727631684,0.1983763,54582.0,54581.0,0.002]
[1725727631895,0.091628,54571.0,54570.0,0.00144]
[1725727632096,0.191628,54571.0,54570.0,0.00144]
[1725727632692,0.20882081,54571.0,54570.0,0.00144]
[1725727632899,0.091631,54570.0,54566.0,0.091635]
[1725727633103,0.1523577,54569.0,54566.0,0.091635]
[1725727633299,0.0607267,54568.0,54566.0,0.091635]
[1725727633492,0.091631,54569.0,54566.0,0.091635]
[1725727634502,0.01681517,54571.0,54566.0,0.091635]
[1725727634503,0.091634,54568.0,54566.0,0.091635]
[1725727635592,0.091634,54568.0,54566.0,0.092635]
[1725727636201,0.06572381,54567.0,54566.0,0.093635]
[1725727636495,0.091634,54568.0,54566.0,0.093635]
[1725727636688,0.15735881,54567.0,54566.0,0.093635]
[1725727637004,0.091635,54567.0,54566.0,0.092635]
[1725727637893,0.15735881,54567.0,54566.0,0.282635]
[1725727638399,0.15735881,54567.0,54566.0,0.281635]
[1725727638599,0.15735881,54567.0,54566.0,0.283635]
[1725727638995,0.0492,54581.0,54580.0,0.091613]
[1725727639193,0.38145941,54585.0,54580.0,0.281613]
[1725727639194,0.01655933,54582.0,54580.0,0.281613]
[1725727639502,0.08290655,54581.0,54580.0,0.19]
[1725727639704,0.01718952,54581.0,54580.0,0.281613]
[1725727640099,0.01718952,54582.0,54580.0,0.281613]
[1725727640398,0.10879952,54582.0,54577.0,0.19]
[1725727640597,0.01718952,54581.0,54576.0,0.091619]
[1725727640805,0.091615,54579.0,54576.0,0.091619]
[1725727641101,0.091628,54571.0,54568.0,0.0162241]
[1725727641397,0.79,54579.0,54568.0,0.0162241]
[1725727641398,0.1376,54570.0,54568.0,0.0162241]
[1725727641607,0.1376,54570.0,54567.0,0.091634]
[1725727641993,0.091631,54569.0,54564.0,0.19]
[1725727642205,0.091635,54567.0,54564.0,0.19]
[1725727642809,0.091635,54567.0,54566.0,0.002]
[1725727643197,0.091635,54567.0,54564.0,0.19]
[1725727643399,0.091635,54567.0,54564.0,0.195]
[1725727643910,0.091635,54567.0,54566.0,0.002]
[1725727644508,0.091635,54567.0,54556.0,0.05497859]
[1725727644509,0.29882888,54567.0,54564.0,0.005]
[1725727644810,0.281638,54565.0,54564.0,0.005]
[1725727645008,0.29883188,54565.0,54564.0,0.005]
[1725727645710,0.091653,54557.0,54555.0,0.220042]
[1725727646006,0.091653,54557.0,54555.0,0.091654]
[1725727646007,0.0469,54556.0,54555.0,0.091654]
[1725727646593,0.138553,54556.0,54555.0,0.091654]
[1725727647005,0.091657,54554.0,54545.0,0.20678362]
[1725727647209,0.091672,54545.0,54542.0,0.3302]
[1725727647513,0.091672,54545.0,54542.0,0.137076]
[1725727647898,0.090672,54545.0,54542.0,0.137076]
[1725727648098,0.090672,54545.0,54542.0,0.091676]
[1725727648408,0.091675,54543.0,54542.0,0.008]
[1725727648597,0.281675,54543.0,54542.0,0.008]
[1725727648798,1.431715,54543.0,54542.0,0.008]
[1725727649012,0.091685,54538.0,54534.0,0.091689]
[1725727649209,0.091685,54538.0,54531.0,0.19]
[1725727649210,0.084685,54538.0,54535.0,0.091688]
[1725727650714,0.001,54545.0,54537.0,0.19]
[1725727650914,0.001,54545.0,54544.0,0.091673]
[1725727651302,0.091661,54552.0,54543.0,0.19]
[1725727651502,0.091661,54552.0,54550.0,0.091663]
[1725727654315,0.095661,54552.0,54550.0,0.091663]
[1725727659708,0.095661,54552.0,54546.0,0.091669]
[1725727660110,0.091667,54548.0,54547.0,0.091668]
[1725727661013,0.091661,54552.0,54547.0,0.091668]
[1725727661311,0.091668,54547.0,54546.0,0.001]
[1725727661503,0.19,54547.0,54541.0,0.091677]
[1725727661702,0.2393,54546.0,54541.0,0.091677]
[1725727662113,0.091675,54543.0,54542.0,0.091676]
[1725727664204,0.092675,54543.0,54542.0,0.091676]
[1725727667616,0.001,54543.0,54542.0,0.091676]
[1725727668906,0.001,54543.0,54542.0,0.281676]
[1725727669918,0.09167,54546.0,54545.0,0.091672]
[1725727671222,0.09267,54546.0,54545.0,0.091672]
[1725727672120,0.001,54546.0,54541.0,0.091678]
[1725727672320,0.091677,54542.0,54541.0,0.091678]
[1725727673716,0.091677,54542.0,54541.0,0.095678]
[1725727674816,0.091677,54542.0,54541.0,0.091678]
[1725727675017,0.091677,54542.0,54541.0,0.092678]
[1725727678132,0.091677,54542.0,54541.0,0.001]
[1725727679920,0.091678,54541.0,54540.0,0.091679]
[1725727680625,0.091678,54541.0,54533.0,0.06501071]
[1725727680626,0.09168,54540.0,54539.0,0.07326081]
[1725727680929,0.09168,54540.0,54533.0,0.12688356]
[1725727680930,0.091682,54539.0,54537.0,0.07326081]
[1725727681130,0.3316,54540.0,54537.0,0.07326081]
[1725727681131,0.88168,54540.0,54537.0,0.05492945]
[1725727681425,0.18337,54537.0,54536.0,0.05492945]
[1725727681726,0.18337,54537.0,54535.0,0.05492945]
[1725727681727,0.183374,54536.0,54535.0,0.05492945]
[1725727681918,0.183376,54535.0,54534.0,0.05492945]
[1725727682119,0.18338,54534.0,54533.0,0.05492945]
[1725727682629,0.091692,54533.0,54531.0,0.05492945]
[1725727682820,0.19,54532.0,54531.0,0.05492945]
[1725727683024,0.74012,54532.0,54531.0,0.05492945]
[1725727683220,0.091695,54531.0,54530.0,0.05492945]
[1725727683825,0.090695,54531.0,54530.0,0.05492945]
[1725727684124,0.090695,54531.0,54529.0,0.05492945]
[1725727684324,0.090695,54531.0,54528.0,0.16495981]
[1725727684522,0.091698,54529.0,54528.0,0.091699]
[1725727685426,0.091698,54529.0,54528.0,0.07314409]
[1725727685630,0.091698,54529.0,54528.0,0.06714409]
[1725727685931,0.091705,54525.0,54522.0,0.222188]
[1725727686132,0.091705,54525.0,54522.0,0.0938]
[1725727686726,0.091705,54525.0,54523.0,0.091708]
[1725727687831,0.091705,54525.0,54524.0,0.091707]
[1725727688030,0.19,54529.0,54522.0,0.18551]
[1725727688230,0.19,54529.0,54522.0,0.0938]
[1725727688438,0.19,54529.0,54523.0,0.091707]
[1725727688936,0.091706,54525.0,54523.0,0.091707]
[1725727689435,0.091707,54524.0,54523.0,0.091707]
[1725727690033,0.091689,54535.0,54523.0,1.34024]
[1725727690232,0.0941,54540.0,54529.0,0.05483128]
[1725727690233,0.091682,54539.0,54529.0,0.05483128]
[1725727690437,0.091682,54539.0,54528.0,0.19]
[1725727690438,0.19,54538.0,54528.0,0.24483128]
[1725727690622,0.091692,54533.0,54531.0,0.091694]
[1725727690827,0.091692,54533.0,54532.0,0.091693]
[1725727692632,0.19,54534.0,54528.0,0.05483128]
[1725727692828,0.19,54529.0,54522.0,0.0938]
[1725727693033,0.19,54525.0,54520.0,0.128388]
[1725727693341,0.091714,54520.0,54519.0,0.091714]
[1725727698143,0.091717,54518.0,54516.0,0.09172]
[1725727698342,0.19,54517.0,54510.0,0.01626424]
[1725727698537,0.091717,54518.0,54504.0,0.3326]
[1725727698538,0.19,54514.0,54504.0,0.3326]
[1725727698734,0.091729,54511.0,54510.0,0.091728]
[1725727699235,0.091734,54509.0,54504.0,0.3326]
[1725727700239,0.091734,54509.0,54504.0,0.1426]
[1725727700543,0.091734,54509.0,54508.0,0.091734]
[1725727705845,0.091713,54521.0,54508.0,0.19]
[1725727706044,0.19,54520.0,54516.0,0.091719]
[1725727706950,0.091719,54517.0,54516.0,0.091719]
[1725727707448,0.091724,54514.0,54512.0,0.091726]
[1725727709751,0.091731,54510.0,54508.0,0.091733]
[1725727709941,0.091731,54510.0,54509.0,0.091732]
[1725727713346,0.2064732,54521.0,54509.0,0.19]
[1725727713541,0.091721,54516.0,54514.0,0.091723]
[1725727713748,0.091722,54515.0,54514.0,0.091723]
[1725727714846,0.091717,54518.0,54517.0,0.091718]
[1725727719052,0.281717,54518.0,54517.0,0.091718]
[1725727719951,0.19,54518.0,54514.0,0.14655528]
[1725727720147,0.281722,54515.0,54514.0,0.14655528]
[1725727720952,0.281722,54515.0,54514.0,0.05483128]
[1725727721252,0.091724,54514.0,54513.0,0.05483128]
[1725727721457,0.091725,54513.0,54512.0,0.05483128]
[1725727721951,0.19,54515.0,54506.0,0.09156754]
[1725727722149,0.091725,54513.0,54512.0,0.05493199]
[1725727722458,0.281725,54513.0,54512.0,0.05493199]
[1725727722850,0.091732,54509.0,54507.0,0.091735]
[1725727725461,0.091732,54509.0,54508.0,0.091734]
[1725727726051,0.091727,54513.0,54512.0,0.091725]
[1725727726251,0.09172,54516.0,54515.0,0.091722]
[1725727730056,0.20699983,54519.0,54518.0,0.091717]
[1725727730057,0.29871483,54519.0,54518.0,0.091717]
[1725727730559,0.10871483,54519.0,54518.0,0.091717]
[1725727731260,0.091715,54519.0,54518.0,0.091717]
[1725727731659,0.10892451,54519.0,54518.0,0.091717]
[1725727733051,0.01720951,54519.0,54518.0,0.091717]
[1725727733362,0.091709,54523.0,54514.0,0.281723]
[1725727733553,0.091709,54523.0,54520.0,0.05500906]
[1725727734358,0.19,54523.0,54519.0,0.0549991]
[1725727734551,0.19,54520.0,54518.0,0.1467151]
[1725727734747,0.19,54520.0,54507.0,0.19]
[1725727734748,0.281714,54520.0,54519.0,0.0549991]
[1725727734952,0.091715,54519.0,54517.0,0.1467181]
[1725727735763,0.091717,54518.0,54517.0,0.1467181]
[1725727736458,0.091717,54518.0,54517.0,0.14672137]
[1725727736659,0.091717,54518.0,54517.0,0.14671971]
[1725727737258,0.091717,54518.0,54517.0,0.091719]
[1725727737757,0.091714,54520.0,54519.0,0.091715]
[1725727737957,0.06578579,54522.0,54521.0,0.091712]
[1725727738651,0.19,54530.0,54521.0,0.19]
[1725727738857,0.091703,54527.0,54521.0,0.19]
[1725727739459,0.091704,54526.0,54525.0,0.091705]
[1725727741368,0.15748979,54526.0,54525.0,0.091705]
[1725727741563,0.17469666,54526.0,54525.0,0.091705]
[1725727743365,0.17469776,54526.0,54525.0,0.091705]
[1725727744870,0.10891197,54526.0,54525.0,0.091705]
[1725727745667,0.091704,54526.0,54525.0,0.091705]